{"text_format":"1","workbook":"xlsx","n_sheets":5,"sheets":["kalkulačka_výpočet_přelom_21-22","výpočet vysvětlivky","skrýt-výpočet_prosinec_21","skrýt-redukce_výpočet","skrýt-měsíc"],"not_rendered":{"charts":0,"images":1,"macros":1,"external_links":0,"defined_names":22,"comments":0,"pivot_tables":0},"unopened":[],"bounds":{"document_bytes":16777216,"sheet_cells":100000,"rows_first":2000,"rows_last":500,"rows_between":2000,"halvings":0,"cell_chars":16384,"cell_head_chars":4096},"cells_cut":0,"cells_raw":0,"read":"whole","date_system":"1900"}

{"sheet":"kalkulačka_výpočet_přelom_21-22","index":0,"n_rows":18,"n_cols":13,"rows_kept":18,"cut":false,"hidden":false,"merged":[[17,1,18,10],[6,1,6,6],[3,14,4,14],[5,1,5,6],[14,9,16,11],[2,1,2,4],[1,1,1,4],[11,1,11,12]]}
[]
[null,"Výpočet mimořádného příspěvku zaměstnanci při nařízené karanténě "]
[null,"Zaměstnanci přísluší za každý kalendářní den, nejdéle však po dobu prvních 14 kalendářních dnů trvání nařízené karantény, příspěvek ve výši až 370 Kč",null,null,null,null,null,null,null,"prosinec 2021","celé období","leden 2022",{"$f":"K3","v":"celé období"}]
[null,"Počet kalendářních dnů v karanténě",null,null,null,null,null,null,null,0,{"$f":"J4+L4","v":0},0,{"$f":"K4","v":0}]
[null,"Počet hodin, které by zaměstnanec odpracoval v době karantény ",null,null,null,null,null,null,null,0,{"$f":"J5+L5","v":0},0,{"$f":"K5","v":0}]
[null,"Průměrný hodinový výdělek",null,null,null,null,null,null,null,0,{"$f":"IFERROR(SUMPRODUCT(_hodiny_březen*_mzda_březen+_hodiny_duben*_mzda_duben)/SUM(_hodiny_březen+_hodiny_duben),0)","v":0},0,{"$f":"_vážený_průměr_průměrná_hodinová_mzda_celé_období_karantnény","v":0}]
[null,"Náhrada mzdy (60 % z redukovaného průměru) za dobu karantény",null,null,null,null,null,null,null,{"$f":"'skrýt-výpočet_prosinec_21'!J9","v":0},{"$f":"J7+L7","v":0},{"$f":"'skrýt-výpočet_prosinec_21'!L9","v":0},{"$f":"_nahrada_mzdy_60_za_období_karantény_pomocí_váženého_průměru","v":0}]
[null,"90 % průměrného výdělku za dobu karantény",null,null,null,null,null,null,null,{"$f":"'skrýt-výpočet_prosinec_21'!J10","v":0},{"$f":"J8+L8","v":0},{"$f":"0.9*_mzda_duben*_hodiny_duben","v":0},{"$f":"K8","v":0}]
[null,"Maximální výše příspěvku při karanténě (370 Kč za den)",null,null,null,null,null,null,null,null,{"$f":"'skrýt-výpočet_prosinec_21'!K11","v":0},null,{"$f":"_celé_období_příspěvek_karanténa","v":0}]
[null,"výše příspěvku na karanténu",null,null,null,null,null,null,null,{"$f":"'skrýt-výpočet_prosinec_21'!J15","v":0},{"$f":"'skrýt-výpočet_prosinec_21'!K15","v":0},{"$f":"'skrýt-výpočet_prosinec_21'!L15","v":0},{"$f":"K10","v":0}]
[null,"Součet náhrady mzdy a příspěvku při karanténě *",null,null,null,null,null,null,null,{"$f":"'skrýt-výpočet_prosinec_21'!J14","v":0},{"$f":"'skrýt-výpočet_prosinec_21'!K18","v":0},{"$f":"'skrýt-výpočet_prosinec_21'!L14","v":0},{"$f":"K11","v":0}]
[null,"*Příspěvek při karanténě v součtu s náhradou příjmu dle zákoníku práce nesmí být vyšší než 90 % průměrného výdělku. V souvislosti s tím se pro účely výplaty  náhrada příjmu zaokrouhluje na celé koruny nahoru a příspěvek při karanténě na celé koruny dolů."]
[]
[null,"Orientační výpočet hodinové mzdy **"]
[null,"Výše měsíční mzdy",null,0]
[null,"Výše úvazku",null,1]
[null,"Hodinová mzda",null,{"$f":"D15/(4.348*40*D16)","v":0}]
[null,"** Slouží pouze pro získání přibližné představy o výši hodinové mzdy pro určitou výši měsíční mzdy. Do kalkulátoru je třeba zadat průměrný hodinový výdělek konkrétního zaměstnance spočítaný podle zákoníku práce."]

{"sheet":"výpočet vysvětlivky","index":1,"n_rows":0,"n_cols":0,"rows_kept":0,"cut":false,"hidden":true,"merged":[]}

{"sheet":"skrýt-výpočet_prosinec_21","index":2,"n_rows":27,"n_cols":17,"rows_kept":27,"cut":false,"hidden":true,"merged":[[8,1,8,6],[1,9,1,11],[8,15,8,16],[3,17,4,17],[9,15,9,16],[5,1,5,6],[7,1,7,2],[6,1,6,2],[26,1,27,11],[26,15,26,16],[9,11,10,14],[14,1,14,8],[12,15,12,16],[13,15,13,16],[20,1,21,11],[16,15,16,16],[17,15,18,16]]}
[]
[null,"Výpočet mimořádného příspěvku zaměstnanci při nařízené karanténě "]
[null,null,null,null,null,null,null,null,null,{"$f":"'kalkulačka_výpočet_přelom_21-22'!J3","v":"prosinec 2021"},"celé období",{"$f":"'kalkulačka_výpočet_přelom_21-22'!L3","v":"leden 2022"}]
[null,"Počet kalendářních dnů v karanténě",null,null,null,null,null,null,null,{"$f":"_dny_březen","v":0},{"$f":"J4+L4","v":0},{"$f":"'kalkulačka_výpočet_přelom_21-22'!L4","v":0}]
[null,"Počet hodin, které by zaměstnanec odpracoval v době karantény ",null,null,null,null,null,null,null,{"$f":"_hodiny_březen","v":0},{"$f":"J5+L5","v":0},{"$f":"_hodiny_duben","v":0}]
[null,"Průměrný hodinový výdělek",null,null,null,null,null,null,null,{"$f":"_mzda_březen","v":0},{"$f":"IFERROR(SUMPRODUCT(J5*J6+L5*L6)/SUM(J5+L5),0)","v":0},{"$f":"_mzda_duben","v":0}]
[null,"Redukce PHV",null,null,null,null,null,null,null,{"$f":"IF('kalkulačka_výpočet_přelom_21-22'!J3=\"prosinec 2021\",'skrýt-redukce_výpočet'!J12,'skrýt-redukce_výpočet'!J29)","v":0},{"$f":"IF('kalkulačka_výpočet_přelom_21-22'!J3=\"prosinec 2021\",'skrýt-redukce_výpočet'!J12,'skrýt-redukce_výpočet'!J29)","v":0},{"$f":"'skrýt-redukce_výpočet'!J29","v":0}]
[null,"Výpočet náhrady mzdy za ",null,null,"hodin",0.6,null,null,null,{"$f":"IF('kalkulačka_výpočet_přelom_21-22'!J3=\"prosinec 2021\",'skrýt-redukce_výpočet'!J13,'skrýt-redukce_výpočet'!J30)","v":0},{"$f":"IF('kalkulačka_výpočet_přelom_21-22'!J3=\"prosinec 2021\",'skrýt-redukce_výpočet'!J13,'skrýt-redukce_výpočet'!J30)","v":0},{"$f":"ROUND((L$7*$F$8),2)*L$5","v":0}]
[null,"Náhrada mzdy (60 % z redukovaného průměru) za dobu karantény",null,null,null,null,null,null,null,{"$f":"CEILING(J8,1)","v":0},{"$f":"J9+L9","v":0},{"$f":"CEILING(L8,1)","v":0},null,null,null,"Příspěvěk při karanténě (\"izolačka\")"]
[null,"90 % průměrného výdělku za dobu karantény",null,null,null,null,null,null,null,{"$f":"0.9*J6*J5","v":0},{"$f":"0.9*K6*K5","v":0},"Maximální příspěvek při karanténě může být může být 5 180 Kč.",null,null,null,{"$f":"K16","v":0}]
[null,"Maximální výše příspěvku při karanténě (370 Kč za den)",null,null,null,null,null,null,null,{"$f":"IF(J4>14,14*370,J4*370)","v":0},{"$f":"IF(K4>14,14*370,K4*370)","v":0},null,null,null,null,{"$f":"J3","v":"prosinec 2021"},{"$f":"L3","v":"leden 2022"}]
[null,null,null,null,null,null,null,null,"kontrolní výpočet - součet náhrady mzdy a maximálního příspěvku ",{"$f":"J11+J9","v":0},{"$f":"K11+K9","v":0},null,null,null,null,{"$f":"J15","v":0},{"$f":"L15","v":0}]
[null,"Případné snížení příspěvku**",null,null,null,null,null,null,null,{"$f":"IF((J10-J9-J11)<0,(J10-J9-J11)*1,(J10-J9-J11)*0)","v":0},{"$f":"IF((K10-K9-K11)<0,(K10-K9-K11)*1,(K10-K9-K11)*0)","v":0},null,null,null,null,"Běžná náhrada mzdy"]
[null,"Součet náhrady mzdy a příspěvku při karanténě ",null,null,null,null,null,null,null,{"$f":"FLOOR(J9+J11+J13,1)","v":0},{"$f":"FLOOR(K9+K11+K13,1)","v":0},{"$f":"K14-J14","v":0},null,null,null,{"$f":"Q16+P16","v":0}]
[null,"výše příspěvku na karanténu",null,null,null,null,null,null,null,{"$f":"FLOOR(J14-J9,1)","v":0},{"$f":"FLOOR(K14-K9,1)","v":0},{"$f":"FLOOR(K15-J15,1)","v":0},null,null,null,{"$f":"J3","v":"prosinec 2021"},{"$f":"L3","v":"leden 2022"}]
[null,"Tzv. izolačka = příspěvek při karanténě",null,null,null,null,null,null,null,null,{"$f":"K15","v":0},null,null,null,null,{"$f":"J9","v":0},{"$f":"L9","v":0}]
[null,null,null,null,null,null,null,null,null,null,null,null,null,null,null,"celková náhrada v době karantény"]
[null,"Součet náhrady mzdy a příspěvku při karanténě *",null,null,null,null,null,null,null,null,{"$f":"K14","v":0},null,null,null,null,{"$f":"K14","v":0}]
[]
[null,null,null,null,null,null,null,null,null,null,null,null,null,null,null,{"$f":"J3","v":"prosinec 2021"},{"$f":"L3","v":"leden 2022"}]
[null,"*Příspěvek při karanténě v součtu s náhradou příjmu dle zákoníku práce nesmí být vyšší než 90 % průměrného výdělku. V souvislosti s tím se pro účely výplaty  náhrada příjmu zaokrouhluje na celé koruny nahoru a příspěvek při karanténě na celé koruny dolů.",null,null,null,null,null,null,null,null,null,null,null,null,null,{"$f":"J14","v":0},{"$f":"L14","v":0}]
[]
[null,"Orientační výpočet hodinové mzdy **"]
[null,"Výše měsíční mzdy",null,18000]
[null,"Výše úvazku",null,1]
[null,"Hodinová mzda",null,{"$f":"D24/(4.348*40*D25)","v":103.49586016559338}]
[null,"** Slouží pouze pro získání přibližné představy o výši hodinové mzdy pro určitou výši měsíční mzdy. Do kalkulátoru je třeba zadat průměrný hodinový výdělek konkrétního zaměstnance spočítaný podle zákoníku práce."]

{"sheet":"skrýt-redukce_výpočet","index":3,"n_rows":30,"n_cols":10,"rows_kept":30,"cut":false,"hidden":true,"merged":[[22,1,22,8],[3,1,3,9],[4,1,4,8],[5,1,5,8],[20,1,20,9],[21,1,21,8]]}
[]
[]
[]
[null,"Kalkulačka pro výpočet náhrady mzdy v roce 2021"]
[null,"Počet hodin, které by zaměstnanec odpracoval v době karantény ",null,null,null,null,null,null,null,{"$f":"_hodiny_březen","v":0}]
[null,"Průměrný hodinový výdělek",null,null,null,null,null,null,null,{"$f":"_mzda_březen","v":0}]
[null,"Redukce PHV"]
[null,null,null," do",206.85,null,"redukce na",0.9,"tj. na",{"$f":"ROUND($H8*MIN(J$6,$E8),2)","v":0}]
[null,"nad",{"$f":"+E8","v":206.85},"do ",310.27999999999997,null,"redukce na",0.6,"tj. na",{"$f":"ROUND($H$9*IF(J$6>C9,MIN(J$6,$C$10)-$C$9,0),2)","v":0}]
[null,"nad",{"$f":"+E9","v":310.27999999999997},"do ",620.38,null,"redukce na",0.3,"tj. na",{"$f":"ROUND($H$10*IF(J$6>$C$10,MIN(J$6,$C$11)-$C$10,0),2)","v":0}]
[null,"nad",{"$f":"+E10","v":620.38},"nezohledňuje se"]
[null,null,null,null,null,null,null,null,null,{"$f":"+J8+J9+J10","v":0}]
[null,null,"Výpočet náhrady mzdy za ",null,"hodin",0.6,null,null,null,{"$f":"ROUND((J$12*$F$13),2)*J$5","v":0}]
[]
[]
[]
[]
[]
[]
[]
[null,"Kalkulačka pro výpočet náhrady mzdy v roce 2022"]
[null,"Počet hodin, které by zaměstnanec odpracoval v době karantény ",null,null,null,null,null,null,null,{"$f":"IF('kalkulačka_výpočet_přelom_21-22'!J3<>\"prosinec 2021\",_hodiny_březen,_hodiny_duben)","v":0}]
[null,"Průměrný hodinový výdělek",null,null,null,null,null,null,null,{"$f":"IF('kalkulačka_výpočet_přelom_21-22'!J3<>\"prosinec 2021\",_mzda_březen,_mzda_duben)","v":0}]
[null,"Redukce PHV"]
[null,null,null," do",227.15,null,"redukce na",0.9,"tj. na",{"$f":"ROUND($H25*MIN(J23,$E25),2)","v":0}]
[null,"nad",{"$f":"+E25","v":227.15},"do ",340.55,null,"redukce na",0.6,"tj. na",{"$f":"ROUND($H$26*IF(J23>C26,MIN(J23,$C$27)-$C$26,0),2)","v":0}]
[null,"nad",{"$f":"+E26","v":340.55},"do ",681.1,null,"redukce na",0.3,"tj. na",{"$f":"ROUND($H$27*IF(J$23>$C$27,MIN(J$23,$C$11)-$C$27,0),2)","v":0}]
[null,"nad",{"$f":"+E27","v":681.1},"nezohledňuje se"]
[null,null,null,null,null,null,null,null,null,{"$f":"+J25+J26+J27","v":0}]
[null,null,"Výpočet náhrady mzdy za ",null,"hodin",0.6,null,null,null,{"$f":"ROUND((J$29*$F$30),2)*J22","v":0}]

{"sheet":"skrýt-měsíc","index":4,"n_rows":4,"n_cols":1,"rows_kept":4,"cut":false,"hidden":true,"merged":[]}
["měsíc"]
["leden 2022"]
["únor 2022"]
["prosinec 2021"]